bitfinex/quotes_SOLUSD_20220129
["timestamp","ask_amount","ask_price","bid_price","bid_amount"]
[1643474431795,2.95669142,94.629,94.531,47.5698]
[1643474431996,2.95669142,94.629,94.49,15.867]
[1643474431997,107.85669142,94.629,94.49,15.867]
[1643474432197,107.85669142,94.629,94.492,49.7443]
[1643474432396,2.95669142,94.628,94.492,49.7443]
[1643474432799,2.95669142,94.628,94.512,22.6773]
[1643474433825,2.95669142,94.628,94.563,0.25]
[1643474434430,2.95669142,94.628,94.512,22.6773]
[1643474434626,2.95669142,94.628,94.492,24.8454]
[1643474434627,6.0,94.618,94.492,24.8454]
[1643474434827,12.76,94.61,94.492,24.8454]
[1643474435027,104.9,94.609,94.502,6.0]
[1643474435229,12.76,94.61,94.492,24.8454]
[1643474435429,2.95669142,94.609,94.493,66.32780986]
[1643474435627,2.95669142,94.608,94.493,63.79531337]
[1643474435830,15.873,94.6,94.503,6.0]
[1643474436026,12.76,94.59,94.493,63.79531337]
[1643474436228,23.0011,94.589,94.493,63.79531337]
[1643474436426,25.95779142,94.589,94.493,63.79531337]
[1643474436630,25.95779142,94.589,94.493,40.89891337]
[1643474436933,26.16339142,94.588,94.493,40.89891337]
[1643474437129,15.876,94.58,94.493,40.89891337]
[1643474437734,2.95669142,94.579,94.493,40.89891337]
[1643474438332,2.95669142,94.579,94.494,0.25]
[1643474440936,23.2067,94.588,94.503,6.0]
[1643474441235,104.9,94.594,94.503,6.0]
[1643474441535,104.9,94.594,94.504,6.25]
[1643474441835,5.5,94.58,94.504,6.25]
[1643474442034,5.5,94.58,94.504,6.0]
[1643474442234,104.9,94.594,94.504,6.0]
[1643474442637,0.25,94.593,94.504,6.0]
[1643474443039,23.1693,94.593,94.504,6.0]
[1643474443238,6.0,94.584,94.505,0.25]
[1643474445039,24.4512,94.592,94.505,0.25]
[1643474445239,0.25,94.591,94.505,0.25]
[1643474445444,3.20669142,94.591,94.505,0.25]
[1643474447641,2.95669142,94.59,94.505,0.25]
[1643474448240,0.25,94.589,94.505,0.25]
[1643474448642,6.0,94.58,94.505,0.25]
[1643474449645,6.0,94.58,94.504,6.0]
[1643474449842,6.0,94.58,94.494,24.4866]
[1643474450044,2.95669142,94.579,94.494,24.4866]
[1643474450844,2.95669142,94.579,94.495,0.25]
[1643474451144,0.25,94.589,94.504,6.0]
[1643474451447,0.25,94.589,94.505,0.25]
[1643474452244,6.0,94.58,94.505,0.25]
[1643474453547,6.0,94.58,94.505,6.25]
[1643474453747,6.0,94.58,94.505,0.25]
[1643474455849,6.0,94.58,94.504,6.0]
[1643474457149,6.0,94.58,94.505,0.25]
[1643474458356,2.95669142,94.579,94.494,24.4866]
[1643474458550,104.9,94.578,94.494,24.4866]
[1643474458751,104.9,94.578,94.493,40.89891337]
[1643474458953,2.95669142,94.577,94.446,4.35271148]
[1643474459255,6.08384446,94.577,94.411,4.35271148]
[1643474459450,175.388,94.57,94.41,532.12050565]
[1643474459649,159.51,94.55,94.41,532.12050565]
[1643474459849,12.76,94.54,94.411,37.42662405]
[1643474460077,104.9,94.539,94.411,37.42662405]
[1643474460249,104.9,94.539,94.412,46.3446]
[1643474460450,2.95669142,94.538,94.421,6.0]
[1643474460651,2.95669142,94.538,94.422,6.0]
[1643474460850,24.9992,94.537,94.45,0.86703047]
[1643474461054,15.888,94.51,94.451,42.65583946]
[1643474461252,28.648,94.51,94.452,0.25]
[1643474462150,28.648,94.51,94.451,42.65583946]
[1643474462352,6.0,94.5,94.451,42.65583946]
[1643474463350,0.25,94.499,94.452,0.25]
[1643474463752,12.76,94.51,94.452,0.25]
[1643474463950,0.25,94.509,94.452,0.25]
[1643474464551,6.0,94.5,94.452,0.25]
[1643474465754,6.0,94.5,94.451,42.65583946]
[1643474465957,6.0,94.5,94.452,0.25]
[1643474466367,0.25,94.499,94.452,0.25]
[1643474467955,6.0,94.5,94.451,42.65583946]
[1643474468158,6.0,94.5,94.452,0.25]
[1643474469061,4.36023033,94.641,94.461,6.0]
[1643474469256,94.93971329,94.654,94.462,0.25]
[1643474469257,12.76,94.57,94.462,0.25]
[1643474469459,12.76,94.6,94.462,63.24]
[1643474469657,12.76,94.6,94.463,2.55109607]
[1643474469858,12.76,94.6,94.464,0.25]
[1643474470056,12.76,94.6,94.473,6.0]
[1643474470257,46.6702,94.599,94.475,40.93758048]
[1643474470557,46.6702,94.599,94.486,104.9]
[1643474470756,0.25,94.598,94.487,0.25]
[1643474471858,0.25,94.598,94.497,36.28457892]
[1643474472260,0.25,94.598,94.498,0.25]
[1643474472668,12.76,94.6,94.498,105.15]
[1643474472862,23.0036,94.634,94.498,105.15]
[1643474472863,12.76,94.62,94.507,6.0]
[1643474473061,12.76,94.62,94.509,6.0]
[1643474473359,12.76,94.62,94.51,0.25]
[1643474473559,12.76,94.62,94.518,6.0]
[1643474473760,12.76,94.62,94.519,0.25]
[1643474473962,12.76,94.62,94.522,6.0]
[1643474474360,12.76,94.62,94.523,0.25]
[1643474474561,12.76,94.62,94.523,6.25]
[1643474475963,12.76,94.62,94.523,0.25]
[1643474476263,0.25,94.619,94.534,44.03076289]
[1643474476662,0.25,94.619,94.544,6.0]
[1643474476868,0.25,94.619,94.545,0.25]
[1643474477864,12.76,94.62,94.545,0.25]
[1643474478067,15.866,94.64,94.545,0.25]
[1643474478266,28.626,94.64,94.545,105.15]
[1643474478666,12.76,94.64,94.545,105.15]
[1643474478869,12.76,94.64,94.555,6.0]
[1643474479071,12.76,94.64,94.556,39.03738422]
[1643474479268,12.76,94.64,94.556,39.28738422]
[1643474479968,0.25,94.639,94.556,39.03738422]
[1643474481874,0.25,94.639,94.557,0.25]
[1643474483096,15.869,94.63,94.557,0.25]
[1643474483291,28.629,94.63,94.557,0.25]
[1643474485394,0.25,94.629,94.557,0.25]
[1643474486195,128.8067,94.659,94.557,0.25]
[1643474486399,22.5562,94.702,94.566,6.0]
[1643474486598,12.76,94.7,94.569,104.9]
[1643474486804,22.5562,94.702,94.571,62.99]
[1643474487007,12.76,94.72,94.581,6.0]
[1643474487206,22.7615,94.742,94.581,6.0]
[1643474487207,12.76,94.73,94.591,39.46219907]
[1643474487402,12.76,94.73,94.592,105.15]
[1643474487602,12.76,94.73,94.602,6.0]
[1643474487802,12.76,94.73,94.603,0.25]
[1643474488004,28.612,94.73,94.603,105.15]
[1643474488202,28.612,94.73,94.603,116.83109607]
[1643474488405,15.852,94.73,94.614,40.74339897]
[1643474488705,22.7615,94.742,94.624,6.0]
[1643474488906,12.76,94.74,94.625,0.25]
[1643474489105,12.76,94.74,94.625,6.25]
[1643474489308,12.76,94.73,94.625,6.0]
[1643474489505,12.76,94.73,94.624,6.0]
[1643474490205,104.9,94.709,94.614,40.74339897]
[1643474490406,12.88782328,94.71,94.614,40.74339897]
[1643474490606,12.88782328,94.71,94.624,6.0]
[1643474491005,0.12782328,94.71,94.624,6.0]
[1643474491508,0.12782328,94.71,94.625,0.25]
[1643474494212,0.12782328,94.71,94.614,40.74339897]
[1643474494612,0.12782328,94.71,94.624,6.0]
[1643474495413,0.12782328,94.71,94.625,105.15]
[1643474495613,0.12782328,94.71,94.635,6.0]
[1643474495814,0.12782328,94.71,94.636,40.52234995]
[1643474496016,0.12782328,94.71,94.646,6.0]
[1643474496516,0.12782328,94.71,94.647,0.25]
[1643474497117,0.12782328,94.71,94.656,41.53965962]
[1643474497314,0.12782328,94.71,94.657,0.25]
[1643474497516,0.12782328,94.71,94.656,41.53965962]
[1643474498115,0.12782328,94.71,94.657,0.25]
[1643474498615,0.12782328,94.71,94.656,41.53965962]
[1643474499517,12.76,94.7,94.656,41.53965962]
[1643474500122,31.57369142,94.7,94.656,41.53965962]
[1643474500324,0.12782328,94.71,94.656,41.53965962]
[1643474502245,0.12782328,94.71,94.657,0.25]
[1643474503043,0.12782328,94.71,94.656,41.53965962]
[1643474506546,12.76,94.7,94.656,41.53965962]
[1643474506746,12.76,94.7,94.645,10.79]
[1643474507349,12.76,94.7,94.61,70.004]
[1643474507650,12.76,94.7,94.611,0.25]
[1643474507848,12.76,94.7,94.611,41.49546443]
[1643474508052,12.76,94.7,94.621,6.0]
[1643474508249,12.76,94.7,94.622,0.25]
[1643474509257,0.25,94.699,94.622,0.25]
[1643474509460,0.25,94.699,94.611,41.24546443]
[1643474509461,0.25,94.699,94.612,0.25]
[1643474509757,0.25,94.699,94.611,41.24546443]
[1643474509958,105.15,94.699,94.611,41.24546443]
[1643474510162,2.95669142,94.698,94.611,41.24546443]
[1643474512067,15.858,94.69,94.611,41.24546443]
[1643474512267,28.618,94.69,94.611,41.24546443]
[1643474512465,28.618,94.69,94.612,0.25]
[1643474514065,0.25,94.689,94.611,41.24546443]
[1643474515271,0.25,94.689,94.612,0.25]
[1643474516371,2.95669142,94.688,94.574,46.7956]
[1643474516569,104.9,94.679,94.574,46.7956]
[1643474516770,12.76,94.67,94.575,0.25]
[1643474517372,12.76,94.67,94.575,39.85188466]
[1643474517874,0.25,94.669,94.575,39.85188466]
[1643474519979,0.25,94.669,94.576,104.9]
[1643474520405,15.86,94.68,94.577,0.25]
[1643474521104,15.86,94.68,94.586,6.0]
[1643474521409,15.86,94.68,94.587,0.25]
[1643474522203,0.25,94.679,94.587,0.25]
[1643474522610,0.25,94.679,94.586,0.25]
[1643474523409,15.86,94.68,94.586,0.25]
[1643474523609,15.86,94.68,94.586,6.25]
[1643474523808,15.86,94.68,94.587,0.25]
[1643474524411,15.856,94.7,94.587,0.25]
[1643474524608,12.76,94.7,94.588,2.54023039]
[1643474524809,12.76,94.7,94.589,0.25]
[1643474525008,12.76,94.7,94.6,39.21447714]
[1643474525207,12.76,94.7,94.601,22.7952]
[1643474525407,12.76,94.7,94.61,6.0]
[1643474525611,12.76,94.7,94.611,6.0]
[1643474525810,12.76,94.7,94.612,0.25]
[1643474526609,0.12782328,94.71,94.613,2.54023039]
[1643474526808,0.12782328,94.71,94.615,33.27183253]
[1643474527009,0.12782328,94.71,94.625,6.0]
[1643474527308,0.12782328,94.71,94.627,104.9]
[1643474527508,0.12782328,94.71,94.637,6.0]
[1643474527710,0.12782328,94.71,94.638,36.057108]
[1643474527910,0.12782328,94.71,94.639,22.7669]
[1643474528114,0.12782328,94.71,94.649,6.0]
[1643474528311,0.12782328,94.71,94.65,24.9637]
[1643474528511,0.12782328,94.71,94.65,30.9637]
[1643474528712,0.12782328,94.71,94.66,42.82263258]
[1643474529113,0.12782328,94.71,94.67,6.0]
[1643474529411,0.12782328,94.71,94.671,0.25]
[1643474529615,0.12782328,94.71,94.671,8.79023039]
[1643474530614,0.12782328,94.71,94.672,104.9]
[1643474530813,0.12782328,94.71,94.671,8.79023039]
[1643474530814,0.12782328,94.71,94.673,0.25]
[1643474531012,0.12782328,94.71,94.671,0.25]
[1643474532017,0.12782328,94.71,94.67,6.0]
[1643474532420,0.12782328,94.71,94.671,0.25]
[1643474532619,0.12782328,94.71,94.671,2.79012391]
[1643474532825,0.12782328,94.71,94.672,23.4285]
[1643474533020,0.12782328,94.71,94.682,41.19954258]
[1643474533420,0.12782328,94.71,94.683,0.25]
[1643474533620,0.12782328,94.71,94.683,6.25]
[1643474533822,0.12782328,94.71,94.692,6.0]
[1643474534021,0.12782328,94.71,94.693,6.0]
[1643474534223,0.12782328,94.71,94.693,6.25]
[1643474534421,0.12782328,94.71,94.693,6.0]
[1643474534623,0.12782328,94.71,94.694,0.25]
[1643474534922,0.51129312,94.71,94.696,105.6]
[1643474535122,2.90250717,94.826,94.707,105.6]
[1643474535327,2.90250717,94.831,94.71,62.99]
[1643474535524,4.45082824,94.867,94.721,66.0]
[1643474535732,4.45082824,94.867,94.72,6.0]
[1643474535733,0.09059791,94.867,94.733,0.32158464]
[1643474535924,0.09059791,94.867,94.733,62.99]
[1643474536124,0.09059791,94.867,94.744,105.6]
[1643474536329,0.09059791,94.867,94.743,6.0]
[1643474536330,0.09059791,94.867,94.751,105.6]
[1643474536531,0.09059791,94.867,94.761,6.0]
[1643474536731,0.09059791,94.867,94.762,49.0057]
[1643474536931,0.09059791,94.867,94.762,49.2557]
[1643474537131,0.09059791,94.867,94.773,35.33351777]
[1643474537331,2.95669142,94.866,94.773,35.33351777]
[1643474537530,12.76,94.86,94.702,49.0057]
[1643474537732,12.76,94.86,94.744,6.0]
[1643474537936,25.74699142,94.859,94.713,2.54012391]
[1643474538235,2.95669142,94.858,94.723,6.0]
[1643474538433,2.95669142,94.858,94.714,24.8996]
[1643474538434,2.95669142,94.858,94.724,41.13921746]
[1643474538634,2.95669142,94.858,94.724,47.13921746]
[1643474538861,2.77487339,94.857,94.725,0.25]
[1643474539035,15.833,94.84,94.725,0.25]
[1643474539438,2.95669142,94.856,94.731,105.6]
[1643474539635,2.95669142,94.856,94.742,105.6]
[1643474539835,24.6475,94.879,94.743,59.0730918]
[1643474540035,2.95669142,94.866,94.753,6.0]
[1643474540440,15.829,94.87,94.754,0.25]
[1643474540636,0.25,94.865,94.754,24.3481]
[1643474541037,2.95669142,94.864,94.754,24.3481]
[1643474541240,28.59,94.86,94.72,12.76]
[1643474541441,28.59,94.86,94.681,46.9238]
[1643474541639,3.20669142,94.859,94.681,46.9238]
[1643474541840,123.95450064,94.859,94.681,46.9238]
[1643474542038,18.10450064,94.858,94.681,46.9238]
[1643474542336,18.10450064,94.858,94.682,38.38180563]
[1643474542537,19.3085407,94.857,94.692,6.0]
[1643474542740,0.31800426,94.835,94.692,6.0]
[1643474542937,12.76,94.82,94.692,6.0]
[1643474543137,48.44,94.819,94.692,6.0]
[1643474543540,51.39669142,94.819,94.692,6.0]
[1643474543837,4.16073148,94.818,94.692,6.0]
[1643474544039,15.841,94.79,94.693,6.25]
[1643474544240,23.0056,94.789,94.693,6.25]
[1643474546979,12.76,94.8,94.693,6.25]
[1643474547175,12.76,94.82,94.694,26.85872461]
[1643474547373,12.76,94.85,94.703,62.99]
[1643474547573,12.76,94.85,94.713,6.0]
[1643474547774,12.76,94.85,94.714,0.25]
[1643474547976,18.10450064,94.849,94.714,0.25]
[1643474548174,105.6,94.848,94.714,0.25]
[1643474548379,108.55669142,94.848,94.714,0.25]
[1643474548676,4.16073148,94.847,94.714,0.25]
[1643474548878,27.04903148,94.847,94.714,0.25]
[1643474549074,27.04903148,94.847,94.712,6.0]
[1643474549075,15.832,94.84,94.713,0.25]
[1643474549275,12.76,94.83,94.713,0.25]
[1643474549477,22.8883,94.829,94.713,6.25]
[1643474549675,105.6,94.828,94.713,0.25]
[1643474549874,22.9792,94.827,94.704,0.25]
[1643474550075,22.9792,94.827,94.712,6.0]
[1643474550274,3.20669142,94.826,94.713,0.25]
[1643474550479,3.20669142,94.826,94.713,24.1196]
[1643474550674,2.95669142,94.825,94.713,24.1196]
[1643474550877,2.95669142,94.825,94.724,41.40392391]
[1643474551078,15.837,94.81,94.724,41.40392391]
[1643474551274,15.837,94.81,94.725,0.25]
[1643474551476,2.95669142,94.809,94.725,0.25]
[1643474552478,15.837,94.81,94.725,0.25]
[1643474553784,22.9792,94.827,94.725,0.25]
[1643474553981,2.95669142,94.81,94.725,0.25]
[1643474554383,22.9792,94.827,94.725,0.25]
[1643474554581,22.9792,94.827,94.734,6.0]
[1643474554782,22.9792,94.827,94.735,0.25]
[1643474554982,2.95669142,94.826,94.735,0.25]
[1643474555381,1.20404006,94.825,94.735,0.25]
[1643474555783,2.95669142,94.824,94.735,0.25]
[1643474555982,15.836,94.82,94.725,24.7985]
[1643474556393,3.20669142,94.819,94.725,24.7985]
[1643474556782,2.95669142,94.818,94.725,24.7985]
[1643474557186,15.836,94.82,94.725,24.7985]
[1643474557984,2.95669142,94.82,94.735,6.0]
[1643474558389,2.95669142,94.82,94.736,0.25]
[1643474559184,2.95669142,94.82,94.724,41.40392391]
[1643474559985,0.25,94.819,94.724,41.40392391]
[1643474560385,2.95669142,94.818,94.725,105.6]
[1643474560590,2.95669142,94.818,94.725,130.4958]
[1643474560785,2.95669142,94.818,94.725,24.8958]
[1643474560985,1.20404006,94.824,94.735,6.0]
[1643474561185,2.95669142,94.839,94.735,6.0]
[1643474561392,2.95669142,94.839,94.736,0.25]
[1643474561587,2.95669142,94.823,94.724,41.40392391]
[1643474561786,48.5725,94.822,94.724,41.40392391]
[1643474562186,2.95669142,94.821,94.724,41.40392391]
[1643474562586,108.55669142,94.821,94.724,41.40392391]
[1643474562790,105.6,94.819,94.724,41.40392391]
[1643474562989,105.6,94.819,94.703,24.2375]
[1643474563189,4.54428882,94.818,94.703,24.2375]
[1643474563489,4.54428882,94.817,94.703,24.2375]
[1643474563690,5.74832888,94.817,94.703,24.2375]
[1643474563904,4.54428882,94.816,94.704,38.78983282]
[1643474564092,15.839,94.8,94.704,39.03983282]
[1643474564293,28.599,94.8,94.704,38.78983282]
[1643474564492,2.95669142,94.799,94.704,38.78983282]
[1643474564792,108.55669142,94.799,94.704,38.78983282]
[1643474564993,105.6,94.797,94.704,38.78983282]
[1643474565492,2.95669142,94.796,94.704,38.78983282]
[1643474565693,4.16073148,94.796,94.705,0.25]
[1643474565894,15.842,94.79,94.691,24.6398]
[1643474566096,12.76,94.78,94.628,76.5631]
[1643474566293,12.76,94.78,94.629,47.9048]
[1643474566495,12.76,94.78,94.639,6.0]
[1643474566692,105.6,94.778,94.639,6.0]
[1643474566892,105.6,94.778,94.64,36.97921668]
[1643474567093,2.95669142,94.777,94.64,36.97921668]
[1643474567292,5.74719199,94.777,94.641,23.4451]
[1643474567492,4.16073148,94.777,94.641,129.2951]
[1643474567696,2.95669142,94.776,94.641,129.2951]
[1643474567895,4.16073148,94.776,94.641,129.2951]
[1643474568095,15.846,94.76,94.641,129.2951]
[1643474568293,22.6084,94.759,94.651,6.0]
[1643474568693,25.56509142,94.759,94.652,0.25]
[1643474568894,2.95669142,94.758,94.652,0.25]
[1643474569495,2.95669142,94.758,94.641,129.0451]
[1643474569695,2.95669142,94.758,94.641,23.4451]
[1643474569894,15.848,94.75,94.641,23.4451]
[1643474570294,108.55669142,94.749,94.641,23.4451]
[1643474570497,24.0033,94.748,94.641,23.4451]
[1643474570697,26.95999142,94.748,94.641,23.4451]
[1643474570896,0.25,94.747,94.642,0.25]
[1643474571099,3.20669142,94.747,94.642,0.25]
[1643474571296,2.95669142,94.746,94.642,0.25]
[1643474571699,23.1489,94.745,94.642,0.25]
[1643474572098,2.95669142,94.744,94.642,0.25]
[1643474572998,15.848,94.75,94.642,0.25]
[1643474574103,0.25,94.749,94.642,0.25]
[1643474575503,22.8408,94.749,94.642,0.25]
[1643474576002,23.6324,94.748,94.642,0.25]
[1643474578604,105.6,94.747,94.642,0.25]
[1643474578913,105.6,94.739,94.642,0.25]
[1643474579512,2.95669142,94.738,94.642,0.25]
[1643474579710,24.6999,94.737,94.642,0.25]
[1643474581036,0.25,94.736,94.642,0.25]
[1643474582633,105.85,94.736,94.642,0.25]
[1643474582834,2.95669142,94.735,94.641,0.25]
[1643474583034,105.6,94.729,94.641,0.25]
[1643474583436,2.95669142,94.728,94.641,0.25]
[1643474584841,0.25,94.727,94.607,23.865]
[1643474585038,105.6,94.719,94.607,23.865]
[1643474585639,2.95669142,94.718,94.607,23.865]
[1643474585840,2.95669142,94.718,94.608,43.49825487]
[1643474586240,105.6,94.716,94.609,0.25]
[1643474586640,105.6,94.709,94.609,0.25]
[1643474587040,2.95669142,94.708,94.609,0.25]
[1643474587440,24.0428,94.707,94.609,0.25]
[1643474587842,105.6,94.699,94.609,0.25]
[1643474588042,15.857,94.7,94.609,0.25]
[1643474588245,2.95669142,94.698,94.609,0.25]
[1643474589242,0.25,94.697,94.609,22.8176]
[1643474589643,2.95669142,94.696,94.609,22.8176]
[1643474589846,24.0172,94.695,94.609,22.8176]
[1643474590243,2.95669142,94.694,94.609,22.8176]
[1643474593245,15.859,94.68,94.608,43.49825487]
[1643474593449,105.6,94.679,94.608,43.49825487]
[1643474593644,109.76073148,94.679,94.608,43.49825487]
[1643474593845,2.95669142,94.678,94.608,43.49825487]
[1643474594247,15.862,94.67,94.608,43.49825487]
[1643474594446,31.082,94.67,94.545,47.9022]
[1643474594647,48.42399142,94.669,94.546,0.25]
[1643474594847,49.62803148,94.669,94.546,4.5158148]
[1643474595051,108.55669142,94.668,94.546,4.5158148]
[1643474595250,109.76073148,94.668,94.547,4.2658148]
[1643474595445,2.95669142,94.667,94.548,37.36320097]
[1643474595646,4.41073148,94.667,94.548,37.61320097]
[1643474595847,4.41073148,94.667,94.549,0.25]
[1643474596047,15.863,94.66,94.549,0.25]
[1643474596249,105.6,94.659,94.549,0.25]
[1643474596450,108.55669142,94.659,94.549,0.25]
[1643474596650,2.95669142,94.658,94.549,105.85]
[1643474596852,2.95669142,94.658,94.558,6.0]
[1643474597152,1.20404006,94.659,94.558,2.25]
[1643474597350,1.20404006,94.659,94.55,2.52873929]
[1643474597552,2.95669142,94.658,94.559,2.52873929]
[1643474598250,0.25,94.657,94.57,44.68463655]
[1643474598450,0.25,94.657,94.571,24.3881]
[1643474598650,0.25,94.658,94.571,24.6381]
[1643474600053,1.20404006,94.659,94.571,24.6381]
[1643474600251,15.22,94.68,94.581,6.0]
[1643474600451,31.075,94.72,94.582,23.9133]
[1643474600654,31.075,94.72,94.583,105.6]
[1643474600853,6.0,94.71,94.591,38.59959702]
[1643474601052,6.0,94.71,94.601,6.0]
[1643474601355,6.0,94.71,94.602,0.25]
[1643474601552,0.25,94.709,94.602,2.77873929]
[1643474601753,0.25,94.709,94.603,2.52873929]
[1643474601954,23.4378,94.709,94.604,24.2571]
[1643474602153,23.4378,94.709,94.604,24.5071]
[1643474604554,6.0,94.699,94.604,24.5071]
[1643474604755,0.25,94.698,94.604,24.5071]
[1643474605956,5.75,94.699,94.604,24.5071]
[1643474606557,5.75,94.699,94.615,38.3372559]
[1643474606767,5.75,94.699,94.616,0.25]
[1643474607158,5.75,94.699,94.615,38.3372559]
[1643474607359,0.25,94.698,94.615,38.3372559]
[1643474609063,15.22,94.69,94.615,38.3372559]
[1643474609261,105.6,94.689,94.615,38.3372559]
[1643474609464,108.55669142,94.689,94.615,38.3372559]
[1643474609861,2.95669142,94.688,94.615,38.3372559]
[1643474610463,6.0,94.678,94.615,38.3372559]
[1643474613070,0.25,94.677,94.615,38.3372559]
[1643474613272,15.22,94.68,94.616,0.25]
[1643474614123,15.854,94.71,94.616,0.25]
[1643474614320,15.854,94.71,94.616,36.963]
[1643474615321,15.854,94.71,94.616,24.883]
[1643474615722,15.854,94.71,94.616,0.25]
[1643474616122,15.857,94.7,94.616,0.25]
[1643474616321,24.0999,94.699,94.616,0.25]
[1643474616622,6.0,94.689,94.616,0.25]
[1643474617524,6.0,94.679,94.616,0.25]
[1643474617747,6.0,94.679,94.616,47.9765]
[1643474617948,23.1749,94.719,94.616,47.9765]
[1643474618152,6.0,94.709,94.616,47.9765]
[1643474618350,6.0,94.709,94.616,0.25]
[1643474618550,1.99848451,94.709,94.616,0.25]
[1643474618751,0.25,94.708,94.616,0.25]
[1643474618951,0.25,94.708,94.616,24.0402]
[1643474620555,6.0,94.699,94.616,24.0402]
[1643474620756,23.3436,94.698,94.616,24.0402]
[1643474620954,128.9436,94.698,94.616,24.0402]
[1643474621354,0.25,94.697,94.616,24.0402]
[1643474622455,0.25,94.697,94.615,38.3372559]
[1643474622655,15.857,94.69,94.615,38.3372559]
[1643474622856,105.6,94.689,94.584,23.1632]
[1643474623056,131.76059142,94.689,94.584,23.1632]
[1643474623259,2.95669142,94.688,94.584,23.1632]
[1643474623656,1.99848451,94.687,94.584,23.1632]
[1643474623856,1.99848451,94.687,94.585,43.55269068]
[1643474624057,2.95669142,94.686,94.585,43.55269068]
[1643474624257,24.0212,94.685,94.585,43.55269068]
[1643474624457,105.6,94.684,94.585,43.55269068]
[1643474624655,15.22,94.68,94.585,43.55269068]
[1643474625057,31.08,94.68,94.585,43.55269068]
[1643474625458,105.6,94.679,94.585,43.30269068]
[1643474625659,108.55669142,94.679,94.585,43.30269068]
[1643474626059,2.95669142,94.678,94.585,43.30269068]
[1643474626259,4.95517593,94.678,94.585,43.30269068]
[1643474626466,105.6,94.667,94.585,43.30269068]
[1643474626665,24.9332,94.666,94.585,43.30269068]
[1643474626862,24.9332,94.666,94.586,0.25]
[1643474627864,0.25,94.665,94.585,43.30269068]
[1643474628064,3.20669142,94.665,94.585,43.30269068]
[1643474628265,2.95669142,94.664,94.585,43.30269068]
[1643474629068,105.6,94.659,94.585,43.30269068]
[1643474630767,105.6,94.659,94.586,0.25]
[1643474630970,15.863,94.66,94.586,0.25]
[1643474631170,31.079,94.68,94.586,0.25]
[1643474631369,15.859,94.68,94.586,23.4219]
[1643474631569,6.0,94.67,94.586,23.4219]
[1643474632469,15.22,94.71,94.587,2.52873929]
[1643474632672,6.0,94.66,94.587,26.87753929]
[1643474632869,22.7675,94.688,94.588,0.25]
[1643474633072,6.0,94.678,94.588,0.25]
[1643474633868,6.0,94.678,94.588,105.85]
[1643474634069,15.22,94.71,94.598,6.0]
[1643474634270,15.22,94.71,94.6,105.6]
[1643474634471,15.22,94.71,94.601,34.93806584]
[1643474634768,15.22,94.71,94.61,6.0]
[1643474634969,15.22,94.71,94.612,105.6]
[1643474635169,15.852,94.72,94.613,23.9047]
[1643474635369,15.22,94.73,94.623,105.6]
[1643474635569,6.0,94.72,94.624,67.76334811]
[1643474635771,6.0,94.72,94.624,68.01334811]
[1643474636171,24.6884,94.719,94.624,68.01334811]
[1643474636672,0.25,94.718,94.624,68.01334811]
[1643474636872,0.25,94.718,94.625,22.9038]